[Event "*** SCC Grand Prix: Titled Tuesday Blitz"]
[Site "Chess.com"]
[Date "2020.10.06"]
[Round "3"]
[White "shineatchess"]
[Black "Region_07"]
[Result "0-1"]
[WhiteElo "2178"]
[BlackElo "2375"]
[TimeControl "180+1"]
[EndTime "10:27:54 PDT"]
[Termination "Region_07 won on time"]

1. e4 {[%clk 0:03:00.9]} 1... Nc6 {[%clk 0:02:58.8]} 2. d4 {[%clk 0:02:58.6]}
2... d5 {[%clk 0:02:58.6]} 3. e5 {[%clk 0:02:42.2]} 3... f6 {[%clk 0:02:57.9]}
4. Bd3 {[%clk 0:02:29.5]} 4... g6 {[%clk 0:02:39.1]} 5. f4 {[%clk 0:02:20.3]}
5... Nh6 {[%clk 0:02:35.3]} 6. Nf3 {[%clk 0:02:18.6]} 6... Bg7 {[%clk
0:02:34.7]} 7. c4 {[%clk 0:02:03.3]} 7... e6 {[%clk 0:02:32]} 8. O-O {[%clk
0:01:51.8]} 8... O-O {[%clk 0:02:31.5]} 9. Nc3 {[%clk 0:01:43.3]} 9... Nf5
{[%clk 0:02:26]} 10. Bxf5 {[%clk 0:01:34.4]} 10... gxf5 {[%clk 0:02:24.6]} 11.
cxd5 {[%clk 0:01:33.4]} 11... exd5 {[%clk 0:02:24.4]} 12. Be3 {[%clk 0:01:18.1]}
12... Be6 {[%clk 0:02:19.4]} 13. Qe1 {[%clk 0:00:59.5]} 13... Kh8 {[%clk
0:02:11.5]} 14. Bf2 {[%clk 0:00:48.5]} 14... Qe8 {[%clk 0:02:06.9]} 15. Bh4
{[%clk 0:00:43.8]} 15... fxe5 {[%clk 0:02:03]} 16. dxe5 {[%clk 0:00:41.8]} 16...
Qh5 {[%clk 0:02:02.6]} 17. Ng5 {[%clk 0:00:35.3]} 17... Bg8 {[%clk 0:02:01.5]}
18. Rf3 {[%clk 0:00:31.3]} 18... Ne7 {[%clk 0:01:46.6]} 19. Rh3 {[%clk
0:00:30.1]} 19... Ng6 {[%clk 0:01:42.7]} 20. Bg3 {[%clk 0:00:25.3]} 20... Qg4
{[%clk 0:01:39.5]} 21. Ne2 {[%clk 0:00:24.5]} 21... Rae8 {[%clk 0:01:10.9]} 22.
Nf3 {[%clk 0:00:20.7]} 22... c5 {[%clk 0:00:54.6]} 23. Rc1 {[%clk 0:00:19.9]}
23... b6 {[%clk 0:00:53.5]} 24. Qf2 {[%clk 0:00:17.9]} 24... d4 {[%clk
0:00:52.6]} 25. Rd1 {[%clk 0:00:15.3]} 25... Rd8 {[%clk 0:00:47.3]} 26. Ne1
{[%clk 0:00:14.5]} 26... Bc4 {[%clk 0:00:39.5]} 27. Nc1 {[%clk 0:00:13.7]} 27...
Bxe5 {[%clk 0:00:28.5]} 28. Rd2 {[%clk 0:00:09.1]} 28... Bxf4 {[%clk 0:00:26.9]}
29. Bxf4 {[%clk 0:00:09]} 29... Qxf4 {[%clk 0:00:25.5]} 30. Rf3 {[%clk
0:00:08.4]} 30... Qg5 {[%clk 0:00:22.2]} 31. b3 {[%clk 0:00:08.2]} 31... Bd5
{[%clk 0:00:21.4]} 32. Rg3 {[%clk 0:00:07.3]} 32... Qf6 {[%clk 0:00:20.8]} 33.
Ncd3 {[%clk 0:00:06.6]} 33... f4 {[%clk 0:00:20.9]} 34. Rh3 {[%clk 0:00:05.8]}
34... Rg8 {[%clk 0:00:20.2]} 35. Nf3 {[%clk 0:00:05.5]} 35... Ne7 {[%clk
0:00:19.5]} 36. Re2 {[%clk 0:00:05.6]} 36... Nf5 {[%clk 0:00:19.6]} 37. Nfe1
{[%clk 0:00:04.5]} 37... Ne3 {[%clk 0:00:19.1]} 38. Qxf4 {[%clk 0:00:03.9]}
38... Qxf4 {[%clk 0:00:17.4]} 39. Nxf4 {[%clk 0:00:04.1]} 39... Bb7 {[%clk
0:00:18.3]} 40. Rf3 {[%clk 0:00:03.4]} 40... Rdf8 {[%clk 0:00:18.5]} 41. Rff2
{[%clk 0:00:02.8]} 41... Ng4 {[%clk 0:00:17.8]} 42. Rf1 {[%clk 0:00:02.1]} 42...
Ne3 {[%clk 0:00:17.7]} 43. Rff2 {[%clk 0:00:01.8]} 43... Rf5 {[%clk 0:00:17.1]}
0-1

[Event "*** SCC Grand Prix: Titled Tuesday Blitz"]
[Site "Chess.com"]
[Date "2020.10.06"]
[Round "3"]
[White "Mr_Sinigami"]
[Black "LubovMarkelova"]
[Result "1-0"]
[WhiteElo "2501"]
[BlackElo "2221"]
[TimeControl "180+1"]
[EndTime "10:27:57 PDT"]
[Termination "Mr_Sinigami won on time"]

1. c4 {[%clk 0:03:00.9]} 1... c6 {[%clk 0:02:59]} 2. Nf3 {[%clk 0:02:58]} 2...
d5 {[%clk 0:02:59.6]} 3. b3 {[%clk 0:02:57.5]} 3... Nf6 {[%clk 0:02:57.8]} 4.
Bb2 {[%clk 0:02:56.8]} 4... Bf5 {[%clk 0:02:58.4]} 5. e3 {[%clk 0:02:53.5]} 5...
h6 {[%clk 0:02:56.5]} 6. Be2 {[%clk 0:02:52.2]} 6... e6 {[%clk 0:02:55.8]} 7.
O-O {[%clk 0:02:50.6]} 7... Nbd7 {[%clk 0:02:56]} 8. d4 {[%clk 0:02:49.3]} 8...
Be7 {[%clk 0:02:56.4]} 9. Nc3 {[%clk 0:02:47.7]} 9... O-O {[%clk 0:02:56.2]} 10.
Bd3 {[%clk 0:02:46.1]} 10... Bxd3 {[%clk 0:02:54.9]} 11. Qxd3 {[%clk 0:02:45.8]}
11... a5 {[%clk 0:02:53.4]} 12. e4 {[%clk 0:02:38.1]} 12... dxe4 {[%clk
0:02:53.1]} 13. Nxe4 {[%clk 0:02:37.9]} 13... Nxe4 {[%clk 0:02:53.6]} 14. Qxe4
{[%clk 0:02:38]} 14... Nf6 {[%clk 0:02:44.2]} 15. Qe2 {[%clk 0:02:37.4]} 15...
a4 {[%clk 0:02:44.2]} 16. Bc3 {[%clk 0:02:31]} 16... axb3 {[%clk 0:02:38.2]} 17.
axb3 {[%clk 0:02:29.6]} 17... Qb6 {[%clk 0:02:38.4]} 18. Qc2 {[%clk 0:02:21.8]}
18... Bb4 {[%clk 0:02:34.8]} 19. h3 {[%clk 0:02:12.2]} 19... Rfd8 {[%clk
0:02:30.5]} 20. Rfd1 {[%clk 0:02:03.9]} 20... Nh5 {[%clk 0:02:10.2]} 21. Bb2
{[%clk 0:01:57.4]} 21... Nf4 {[%clk 0:02:04.3]} 22. Qe4 {[%clk 0:01:44]} 22...
Ng6 {[%clk 0:01:57.3]} 23. h4 {[%clk 0:01:39.1]} 23... Qc7 {[%clk 0:01:50.9]}
24. g3 {[%clk 0:01:29.6]} 24... Bd6 {[%clk 0:01:30.6]} 25. Kg2 {[%clk
0:01:27.5]} 25... Rxa1 {[%clk 0:01:07]} 26. Rxa1 {[%clk 0:01:23.4]} 26... c5
{[%clk 0:01:03]} 27. dxc5 {[%clk 0:01:15.1]} 27... Bxc5 {[%clk 0:01:03.1]} 28.
h5 {[%clk 0:01:12.8]} 28... Ne7 {[%clk 0:01:01.4]} 29. Bc3 {[%clk 0:00:54]}
29... Qc6 {[%clk 0:00:46.2]} 30. Qe2 {[%clk 0:00:44.1]} 30... Nf5 {[%clk
0:00:41]} 31. Rd1 {[%clk 0:00:41]} 31... Rxd1 {[%clk 0:00:32.8]} 32. Qxd1 {[%clk
0:00:40.7]} 32... Kh7 {[%clk 0:00:30]} 33. Qd3 {[%clk 0:00:39.2]} 33... Qd6
{[%clk 0:00:27.3]} 34. Qe4 {[%clk 0:00:37.8]} 34... Kg8 {[%clk 0:00:05.2]} 35.
Qxb7 {[%clk 0:00:16.9]} 35... Bxf2 {[%clk 0:00:04.5]} 36. Kxf2 {[%clk
0:00:11.7]} 36... Qxg3+ {[%clk 0:00:04.6]} 37. Ke2 {[%clk 0:00:11.7]} 37... Qg2+
{[%clk 0:00:05]} 38. Kd3 {[%clk 0:00:11.1]} 38... Nd6 {[%clk 0:00:02.8]} 39.
Qb8+ {[%clk 0:00:10.1]} 39... Kh7 {[%clk 0:00:03]} 40. Qxd6 {[%clk 0:00:10.4]}
40... Qxf3+ {[%clk 0:00:02]} 41. Kc2 {[%clk 0:00:10.3]} 41... Qe2+ {[%clk
0:00:01.3]} 42. Qd2 {[%clk 0:00:09.7]} 1-0

[Event "*** SCC Grand Prix: Titled Tuesday Blitz"]
[Site "Chess.com"]
[Date "2020.10.06"]
[Round "3"]
[White "tmr88"]
[Black "LaPorfia"]
[Result "1-0"]
[WhiteElo "2112"]
[BlackElo "2306"]
[TimeControl "180+1"]
[EndTime "10:27:57 PDT"]
[Termination "tmr88 won by checkmate"]

1. e4 {[%clk 0:03:00.9]} 1... d5 {[%clk 0:02:59.9]} 2. exd5 {[%clk 0:02:59]}
2... Nf6 {[%clk 0:03:00.4]} 3. d4 {[%clk 0:02:56.3]} 3... Bg4 {[%clk 0:03:00.2]}
4. Nf3 {[%clk 0:02:47.4]} 4... Qxd5 {[%clk 0:02:57.8]} 5. Be2 {[%clk 0:02:43.1]}
5... Nc6 {[%clk 0:02:57]} 6. c3 {[%clk 0:02:31.2]} 6... O-O-O {[%clk 0:02:55.7]}
7. O-O {[%clk 0:02:29.8]} 7... Qh5 {[%clk 0:02:42.7]} 8. Nbd2 {[%clk 0:02:21.2]}
8... e5 {[%clk 0:02:40.3]} 9. h3 {[%clk 0:02:02.2]} 9... e4 {[%clk 0:02:12.6]}
10. hxg4 {[%clk 0:01:57.5]} 10... Nxg4 {[%clk 0:02:10.7]} 11. Nxe4 {[%clk
0:01:57.8]} 11... Nce5 {[%clk 0:02:08.6]} 12. Bf4 {[%clk 0:01:44.1]} 12... Nxf3+
{[%clk 0:02:08.3]} 13. Bxf3 {[%clk 0:01:43]} 13... f5 {[%clk 0:02:07.7]} 14. Ng3
{[%clk 0:01:39.6]} 14... Qg6 {[%clk 0:02:03.4]} 15. Nxf5 {[%clk 0:01:37.2]}
15... h5 {[%clk 0:01:57.1]} 16. Ne3 {[%clk 0:01:28.5]} 16... Bd6 {[%clk
0:01:55]} 17. Bxd6 {[%clk 0:01:19.8]} 17... Qxd6 {[%clk 0:01:50.2]} 18. Bxg4+
{[%clk 0:01:16.7]} 18... hxg4 {[%clk 0:01:50]} 19. Qxg4+ {[%clk 0:01:15.9]}
19... Kb8 {[%clk 0:01:50.2]} 20. Qg3 {[%clk 0:01:15.4]} 20... Qh6 {[%clk
0:01:46.3]} 21. f4 {[%clk 0:00:58.7]} 21... Rde8 {[%clk 0:01:37.6]} 22. Kf2
{[%clk 0:00:56.3]} 22... Qa6 {[%clk 0:01:21.2]} 23. Rh1 {[%clk 0:00:54]} 23...
Rxh1 {[%clk 0:01:18.3]} 24. Rxh1 {[%clk 0:00:54.9]} 24... Qxa2 {[%clk
0:01:18.2]} 25. Nd1 {[%clk 0:00:53.4]} 25... Qe6 {[%clk 0:01:02.7]} 26. Qf3
{[%clk 0:00:51.4]} 26... a5 {[%clk 0:00:56.7]} 27. d5 {[%clk 0:00:51.4]} 27...
Qb6+ {[%clk 0:00:55]} 28. Kg3 {[%clk 0:00:47.8]} 28... Qg6+ {[%clk 0:00:48.8]}
29. Kf2 {[%clk 0:00:46.3]} 29... Qc2+ {[%clk 0:00:47.5]} 30. Kg3 {[%clk
0:00:44.8]} 30... Qg6+ {[%clk 0:00:46.7]} 31. Kh2 {[%clk 0:00:42.9]} 31... Qc2
{[%clk 0:00:36.8]} 32. Rf1 {[%clk 0:00:39.8]} 32... Rf8 {[%clk 0:00:23]} 33. Kg1
{[%clk 0:00:39.6]} 33... g5 {[%clk 0:00:22.4]} 34. Qf2 {[%clk 0:00:35.1]} 34...
Qh7 {[%clk 0:00:10]} 35. g3 {[%clk 0:00:31]} 35... g4 {[%clk 0:00:09.8]} 36. Qg2
{[%clk 0:00:30.8]} 36... Qd3 {[%clk 0:00:08.3]} 37. Re1 {[%clk 0:00:29.5]} 37...
b6 {[%clk 0:00:05.7]} 38. Ne3 {[%clk 0:00:25.1]} 38... a4 {[%clk 0:00:05.5]} 39.
Nxg4 {[%clk 0:00:24.8]} 39... a3 {[%clk 0:00:05.7]} 40. bxa3 {[%clk 0:00:24.3]}
40... Qxc3 {[%clk 0:00:06]} 41. Qf2 {[%clk 0:00:21.9]} 41... Rg8 {[%clk
0:00:05.7]} 42. Ne3 {[%clk 0:00:20.5]} 42... Qxa3 {[%clk 0:00:05.8]} 43. Kg2
{[%clk 0:00:20.4]} 43... Qf8 {[%clk 0:00:05.3]} 44. Qf3 {[%clk 0:00:18.6]} 44...
Qf7 {[%clk 0:00:05.3]} 45. Ng4 {[%clk 0:00:18.1]} 45... Qg7 {[%clk 0:00:04.5]}
46. Ne5 {[%clk 0:00:17.8]} 46... Rh8 {[%clk 0:00:03.8]} 47. Nc6+ {[%clk
0:00:17.1]} 47... Kb7 {[%clk 0:00:03.8]} 48. Ra1 {[%clk 0:00:15.2]} 48... Ra8
{[%clk 0:00:03.8]} 49. Rxa8 {[%clk 0:00:14.2]} 49... Kxa8 {[%clk 0:00:04.5]} 50.
Qa3+ {[%clk 0:00:13.8]} 50... Kb7 {[%clk 0:00:04.9]} 51. Qa7+ {[%clk 0:00:13.7]}
51... Kc8 {[%clk 0:00:05.4]} 52. Qb8+ {[%clk 0:00:13.9]} 52... Kd7 {[%clk
0:00:05.7]} 53. Qd8# {[%clk 0:00:14]} 1-0

[Event "*** SCC Grand Prix: Titled Tuesday Blitz"]
[Site "Chess.com"]
[Date "2020.10.06"]
[Round "3"]
[White "DenLaz"]
[Black "Sven_Tica"]
[Result "0-1"]
[WhiteElo "2809"]
[BlackElo "2654"]
[TimeControl "180+1"]
[EndTime "10:27:59 PDT"]
[Termination "Sven_Tica won by resignation"]

1. d4 {[%clk 0:03:00.2]} 1... d5 {[%clk 0:03:00]} 2. c4 {[%clk 0:02:59.7]} 2...
e6 {[%clk 0:03:00.7]} 3. Nf3 {[%clk 0:02:58.3]} 3... Nf6 {[%clk 0:03:01.4]} 4.
Nc3 {[%clk 0:02:58.3]} 4... Nbd7 {[%clk 0:03:01.4]} 5. cxd5 {[%clk 0:02:58.1]}
5... exd5 {[%clk 0:03:02.3]} 6. Bg5 {[%clk 0:02:58.3]} 6... c6 {[%clk
0:03:02.1]} 7. e3 {[%clk 0:02:58.4]} 7... Bd6 {[%clk 0:03:02.7]} 8. Bd3 {[%clk
0:02:57]} 8... Nf8 {[%clk 0:03:03.2]} 9. Ne5 {[%clk 0:02:54.6]} 9... Qe7 {[%clk
0:03:02]} 10. f4 {[%clk 0:02:52.8]} 10... h6 {[%clk 0:03:02.2]} 11. Bh4 {[%clk
0:02:52.6]} 11... g5 {[%clk 0:03:02.6]} 12. Bf2 {[%clk 0:02:39.8]} 12... gxf4
{[%clk 0:02:54.5]} 13. exf4 {[%clk 0:02:40.7]} 13... Ng4 {[%clk 0:02:54.9]} 14.
O-O {[%clk 0:02:21.5]} 14... Nxf2 {[%clk 0:02:53.2]} 15. Rxf2 {[%clk 0:02:22.4]}
15... Ne6 {[%clk 0:02:49.5]} 16. Qh5 {[%clk 0:02:08.2]} 16... Ng7 {[%clk
0:02:43.1]} 17. Qf3 {[%clk 0:02:03.1]} 17... Bf5 {[%clk 0:02:39.8]} 18. Re2
{[%clk 0:01:45.1]} 18... Bxd3 {[%clk 0:02:06.5]} 19. Nxd3 {[%clk 0:01:22.8]}
19... Ne6 {[%clk 0:02:05]} 20. f5 {[%clk 0:01:22.9]} 20... O-O-O {[%clk
0:02:05.3]} 21. fxe6 {[%clk 0:01:21]} 21... fxe6 {[%clk 0:02:06.2]} 22. Qh3
{[%clk 0:01:12.8]} 22... Rde8 {[%clk 0:02:00.1]} 23. Rf1 {[%clk 0:01:01]} 23...
Qg7 {[%clk 0:01:52]} 24. Ne5 {[%clk 0:00:57.6]} 24... Re7 {[%clk 0:01:47.2]} 25.
Nf3 {[%clk 0:00:45.6]} 25... Rhe8 {[%clk 0:01:42.4]} 26. Rfe1 {[%clk 0:00:44.5]}
26... Qg6 {[%clk 0:01:40.9]} 27. Ne5 {[%clk 0:00:39.7]} 27... Qf6 {[%clk
0:01:37.7]} 28. Qe3 {[%clk 0:00:38.6]} 28... Kc7 {[%clk 0:01:36.6]} 29. Na4
{[%clk 0:00:31.9]} 29... Rg7 {[%clk 0:01:12.1]} 30. Nc5 {[%clk 0:00:25.6]} 30...
b6 {[%clk 0:01:09.9]} 31. Ncd3 {[%clk 0:00:24.3]} 31... Reg8 {[%clk 0:01:07.4]}
32. Rf1 {[%clk 0:00:21.1]} 32... Qh4 {[%clk 0:01:04.1]} 33. Nf4 {[%clk
0:00:18.7]} 33... Kb7 {[%clk 0:00:51]} 34. Nxe6 {[%clk 0:00:18.1]} 34... Re7
{[%clk 0:00:51.3]} 35. Nf4 {[%clk 0:00:18.7]} 35... Rxe5 {[%clk 0:00:51.5]} 36.
dxe5 {[%clk 0:00:13.3]} 36... Bc5 {[%clk 0:00:51.9]} 37. Qxc5 {[%clk 0:00:13]}
37... bxc5 {[%clk 0:00:52.8]} 38. e6 {[%clk 0:00:13.9]} 38... Re8 {[%clk
0:00:51.6]} 39. g3 {[%clk 0:00:13.3]} 39... Qg4 {[%clk 0:00:48.1]} 40. Rc2
{[%clk 0:00:12.6]} 40... h5 {[%clk 0:00:44.7]} 41. Rxc5 {[%clk 0:00:11.5]} 41...
h4 {[%clk 0:00:44.8]} 42. Rc3 {[%clk 0:00:11.5]} 42... hxg3 {[%clk 0:00:44.8]}
43. hxg3 {[%clk 0:00:12.4]} 43... Qf5 {[%clk 0:00:37.9]} 44. Re1 {[%clk
0:00:11.7]} 44... Kc7 {[%clk 0:00:31.9]} 45. Rce3 {[%clk 0:00:11.5]} 45... Kd6
{[%clk 0:00:32.4]} 46. e7 {[%clk 0:00:10.6]} 46... d4 {[%clk 0:00:30.3]} 47.
Re6+ {[%clk 0:00:10.7]} 47... Kd7 {[%clk 0:00:30.7]} 48. Rd1 {[%clk 0:00:10]}
48... c5 {[%clk 0:00:30.1]} 49. Rde1 {[%clk 0:00:09.4]} 49... d3 {[%clk
0:00:27.8]} 50. R6e3 {[%clk 0:00:09.6]} 50... c4 {[%clk 0:00:27.6]} 51. b3
{[%clk 0:00:08.6]} 51... d2 {[%clk 0:00:27]} 52. Rd1 {[%clk 0:00:08.7]} 52...
Qc2 {[%clk 0:00:27.7]} 53. Rxd2+ {[%clk 0:00:02.9]} 53... Qxd2 {[%clk 0:00:28]}
54. Re5 {[%clk 0:00:03.6]} 54... Qd4+ {[%clk 0:00:27.9]} 55. Kg2 {[%clk
0:00:03]} 55... Qxe5 {[%clk 0:00:28]} 0-1

[Event "*** SCC Grand Prix: Titled Tuesday Blitz"]
[Site "Chess.com"]
[Date "2020.10.06"]
[Round "3"]
[White "DenisQ"]
[Black "Anton_Demchenko"]
[Result "1-0"]
[WhiteElo "2669"]
[BlackElo "2827"]
[TimeControl "180+1"]
[EndTime "10:28:01 PDT"]
[Termination "DenisQ won on time"]

1. Nf3 {[%clk 0:02:33.8]} 1... Nf6 {[%clk 0:02:57.7]} 2. c4 {[%clk 0:02:31.9]}
2... g6 {[%clk 0:02:58.4]} 3. Nc3 {[%clk 0:02:27.6]} 3... Bg7 {[%clk 0:02:59.3]}
4. g3 {[%clk 0:02:24.9]} 4... O-O {[%clk 0:02:57.2]} 5. Bg2 {[%clk 0:02:25.2]}
5... d6 {[%clk 0:02:57.8]} 6. O-O {[%clk 0:02:25.4]} 6... Nbd7 {[%clk 0:02:58]}
7. Rb1 {[%clk 0:02:20.5]} 7... a5 {[%clk 0:02:57.9]} 8. d3 {[%clk 0:02:18.8]}
8... c6 {[%clk 0:02:58.1]} 9. e4 {[%clk 0:02:12.9]} 9... e5 {[%clk 0:02:55.9]}
10. h3 {[%clk 0:02:08.9]} 10... Nc5 {[%clk 0:02:52.7]} 11. Be3 {[%clk 0:02:09]}
11... Re8 {[%clk 0:02:48.8]} 12. a3 {[%clk 0:02:06]} 12... Bd7 {[%clk
0:02:38.9]} 13. b4 {[%clk 0:02:01.2]} 13... axb4 {[%clk 0:02:39.8]} 14. axb4
{[%clk 0:02:01.5]} 14... Ne6 {[%clk 0:02:40.5]} 15. d4 {[%clk 0:01:55.5]} 15...
exd4 {[%clk 0:02:29.5]} 16. Nxd4 {[%clk 0:01:54.8]} 16... h6 {[%clk 0:02:03.5]}
17. Qd2 {[%clk 0:01:41.2]} 17... Ng5 {[%clk 0:01:50.9]} 18. Bxg5 {[%clk
0:01:38.9]} 18... hxg5 {[%clk 0:01:51.8]} 19. Qxg5 {[%clk 0:01:39]} 19... Ra3
{[%clk 0:01:41.7]} 20. Qd2 {[%clk 0:01:26]} 20... Nh7 {[%clk 0:01:40.3]} 21.
Nde2 {[%clk 0:01:02.5]} 21... Be6 {[%clk 0:01:31.2]} 22. b5 {[%clk 0:00:35.6]}
22... Bxc4 {[%clk 0:01:26.4]} 23. bxc6 {[%clk 0:00:35.6]} 23... bxc6 {[%clk
0:01:27.3]} 24. Rfd1 {[%clk 0:00:35.7]} 24... Bb3 {[%clk 0:00:24.2]} 25. Qxd6
{[%clk 0:00:24.5]} 25... Qxd6 {[%clk 0:00:21.3]} 26. Rxd6 {[%clk 0:00:24.6]}
26... Rc8 {[%clk 0:00:22.2]} 27. Rc1 {[%clk 0:00:20.8]} 27... Bf8 {[%clk
0:00:17.7]} 28. Rd2 {[%clk 0:00:17.1]} 28... c5 {[%clk 0:00:10.7]} 29. Nd5
{[%clk 0:00:15.7]} 29... c4 {[%clk 0:00:08.4]} 30. Nd4 {[%clk 0:00:14.2]} 30...
Ra7 {[%clk 0:00:04.9]} 31. Nxb3 {[%clk 0:00:13.3]} 31... Ba3 {[%clk 0:00:02]}
32. Rcc2 {[%clk 0:00:11.7]} 32... Rb7 {[%clk 0:00:02.4]} 33. Na5 {[%clk
0:00:10.5]} 33... Rb1+ {[%clk 0:00:01.4]} 34. Kh2 {[%clk 0:00:11]} 34... Kg7
{[%clk 0:00:01.8]} 35. Nxc4 {[%clk 0:00:10.7]} 35... Bf8 {[%clk 0:00:02.5]} 36.
Ne5 {[%clk 0:00:09.1]} 36... Rxc2 {[%clk 0:00:01.3]} 37. Rxc2 {[%clk 0:00:10]}
37... Ng5 {[%clk 0:00:02.2]} 38. h4 {[%clk 0:00:08.4]} 38... Ne6 {[%clk
0:00:02]} 39. Nf4 {[%clk 0:00:07.3]} 39... Nd4 {[%clk 0:00:01.1]} 40. Rc7 {[%clk
0:00:06.7]} 40... Bd6 {[%clk 0:00:01.1]} 41. Rxf7+ {[%clk 0:00:05.6]} 41... Kg8
{[%clk 0:00:02]} 42. Nfxg6 {[%clk 0:00:04.2]} 1-0

[Event "*** SCC Grand Prix: Titled Tuesday Blitz"]
[Site "Chess.com"]
[Date "2020.10.06"]
[Round "3"]
[White "TokChess"]
[Black "burbur555"]
[Result "0-1"]
[WhiteElo "2402"]
[BlackElo "2585"]
[TimeControl "180+1"]
[EndTime "10:28:02 PDT"]
[Termination "burbur555 won by resignation"]

1. Nf3 {[%clk 0:03:00.9]} 1... d5 {[%clk 0:02:59.5]} 2. d4 {[%clk 0:03:00.8]}
2... c6 {[%clk 0:02:59.5]} 3. c4 {[%clk 0:03:00]} 3... Nf6 {[%clk 0:02:59.7]} 4.
Nc3 {[%clk 0:03:00]} 4... e6 {[%clk 0:02:59.2]} 5. e3 {[%clk 0:03:00.1]} 5...
Nbd7 {[%clk 0:02:59.1]} 6. Bd3 {[%clk 0:02:58.1]} 6... Bd6 {[%clk 0:02:59]} 7.
Bd2 {[%clk 0:02:58.2]} 7... O-O {[%clk 0:02:58.3]} 8. g4 {[%clk 0:02:58.4]} 8...
dxc4 {[%clk 0:02:57.1]} 9. Bxc4 {[%clk 0:02:57.5]} 9... Nd5 {[%clk 0:02:57.3]}
10. Qe2 {[%clk 0:02:46.1]} 10... Nxc3 {[%clk 0:02:52.9]} 11. Bxc3 {[%clk
0:02:44.5]} 11... Qe7 {[%clk 0:02:52.7]} 12. O-O-O {[%clk 0:02:42.4]} 12... b5
{[%clk 0:02:51.5]} 13. Bd3 {[%clk 0:02:41.4]} 13... b4 {[%clk 0:02:51.2]} 14.
Bd2 {[%clk 0:02:41]} 14... a5 {[%clk 0:02:46.3]} 15. Kb1 {[%clk 0:02:40]} 15...
a4 {[%clk 0:02:39.6]} 16. Rc1 {[%clk 0:02:37.3]} 16... Bb7 {[%clk 0:02:37.4]}
17. h4 {[%clk 0:02:22.9]} 17... c5 {[%clk 0:02:36.4]} 18. Rhd1 {[%clk
0:01:42.7]} 18... cxd4 {[%clk 0:02:24.4]} 19. Nxd4 {[%clk 0:01:39.5]} 19... Nc5
{[%clk 0:02:22.4]} 20. Nb5 {[%clk 0:01:34.9]} 20... Nxd3 {[%clk 0:02:15.8]} 21.
Qxd3 {[%clk 0:01:34.6]} 21... Bc5 {[%clk 0:02:14.8]} 22. Nd4 {[%clk 0:01:12.5]}
22... b3 {[%clk 0:02:02.8]} 23. Qb5 {[%clk 0:00:54.5]} 23... bxa2+ {[%clk
0:01:55.9]} 24. Ka1 {[%clk 0:00:54.8]} 24... Rfc8 {[%clk 0:01:38.3]} 25. h5
{[%clk 0:00:41]} 25... h6 {[%clk 0:01:30]} 26. Rc3 {[%clk 0:00:36.3]} 26... Bxd4
{[%clk 0:01:26.7]} 27. exd4 {[%clk 0:00:34.2]} 27... Bd5 {[%clk 0:01:25.1]} 28.
Rdc1 {[%clk 0:00:31.4]} 28... Rxc3 {[%clk 0:01:23.9]} 29. bxc3 {[%clk
0:00:29.1]} 29... Bb3 {[%clk 0:01:20.4]} 30. c4 {[%clk 0:00:26.2]} 30... Qf6
{[%clk 0:01:20]} 31. Be3 {[%clk 0:00:23]} 31... Rc8 {[%clk 0:01:13.1]} 32. c5
{[%clk 0:00:16.8]} 32... e5 {[%clk 0:01:10.8]} 33. Qb4 {[%clk 0:00:14.3]} 33...
exd4 {[%clk 0:01:09.5]} 34. Qxd4 {[%clk 0:00:13.3]} 34... Qe6 {[%clk 0:01:06.7]}
35. Rg1 {[%clk 0:00:11.1]} 35... f6 {[%clk 0:01:05.4]} 36. Rc1 {[%clk
0:00:09.5]} 36... Qc6 {[%clk 0:01:02.5]} 37. Kb2 {[%clk 0:00:09.5]} 37... Re8
{[%clk 0:01:01.9]} 38. Ka1 {[%clk 0:00:09.6]} 38... Re4 {[%clk 0:01:00.7]} 39.
Qd8+ {[%clk 0:00:08.6]} 39... Kh7 {[%clk 0:00:59.6]} 40. Qd3 {[%clk 0:00:09.2]}
40... Kg8 {[%clk 0:00:58.9]} 41. f3 {[%clk 0:00:08.9]} 41... Re8 {[%clk
0:00:57.4]} 42. Bf2 {[%clk 0:00:08.8]} 42... Kf7 {[%clk 0:00:55.2]} 43. Qd4
{[%clk 0:00:09.1]} 43... Re7 {[%clk 0:00:54.6]} 44. Kb2 {[%clk 0:00:07.3]} 44...
Rd7 {[%clk 0:00:53.9]} 45. Qc3 {[%clk 0:00:05.9]} 45... Rd5 {[%clk 0:00:51.2]}
46. Ka1 {[%clk 0:00:05.9]} 46... Re5 {[%clk 0:00:37]} 47. Bg3 {[%clk 0:00:05.3]}
47... Re7 {[%clk 0:00:36.3]} 48. Bd6 {[%clk 0:00:05.3]} 48... Rb7 {[%clk
0:00:35.2]} 49. Qd3 {[%clk 0:00:05.1]} 49... Be6 {[%clk 0:00:34]} 50. Re1 {[%clk
0:00:04.5]} 50... Qd5 {[%clk 0:00:26.9]} 51. Qxd5 {[%clk 0:00:03.7]} 51... Bxd5
{[%clk 0:00:26.5]} 52. Rc1 {[%clk 0:00:04.1]} 52... Rb1+ {[%clk 0:00:20.4]} 53.
Rxb1 {[%clk 0:00:04.2]} 53... axb1=Q+ {[%clk 0:00:20.4]} 54. Kxb1 {[%clk
0:00:04.8]} 54... Bxf3 {[%clk 0:00:20.6]} 0-1